fUSD/lending_fUSD_20250428
["ID","MTS","AMOUNT","RATE_DAILY","PERIOD"]
[359197065,1745804353954,480.0,0.00041095,30]
[359197066,1745804354206,480.0,0.00041095,30]
[359197067,1745804354447,157.95627389,0.00041095,30]
[359197068,1745804356136,480.0,0.00041095,30]
[359197069,1745804356317,480.0,0.00041095,30]
[359197070,1745804356383,411.02702554,0.00041095,30]
[359197071,1745804356413,480.0,0.00041095,30]
[359197072,1745804356563,490.17122926,0.00041095,30]
[359197073,1745804356627,540.82047742,0.00041095,30]
[359197074,1745804357391,541.1947324,0.00041095,30]
[359197075,1745804358541,150.0,0.0001884,7]
[359197076,1745804360130,480.0,0.00041095,30]
[359197077,1745804360390,338.2468702,0.00041095,30]
[359197078,1745804362189,480.0,0.00041095,30]
[359197079,1745804362444,480.0,0.00041095,30]
[359197080,1745804362686,388.26513536,0.00041095,30]
[359197081,1745804362966,480.0,0.00041095,30]
[359197082,1745804363452,205.50993407,0.00041095,30]
[359197083,1745804364005,480.0,0.00041095,30]
[359197084,1745804364089,480.0,0.00041095,30]
[359197085,1745804364334,480.0,0.00041095,30]
[359197086,1745804364364,333.61276998,0.00041095,30]
[359197087,1745804364569,480.0,0.00041095,30]
[359197088,1745804364796,480.0,0.00041095,30]
[359197089,1745804364990,480.0,0.00041095,30]
[359197090,1745804365023,213.06308126,0.00041095,30]
[359197091,1745804365417,408.51314694,0.00041095,30]
[359197092,1745804365923,200.0,0.00041096,30]
[359197093,1745804366406,412.26159778,0.00041095,30]
[359197094,1745804367101,480.0,0.00041095,30]
[359197095,1745804367347,480.0,0.00041095,30]
[359197096,1745804367494,480.0,0.00041095,30]
[359197097,1745804367607,165.00044087,0.00041095,30]
[359197098,1745804367766,480.0,0.00041095,30]
[359197099,1745804367845,1138.51043689,0.000399,30]
[359197100,1745804368022,282.37807398,0.00041095,30]
[359197101,1745804369598,480.0,0.00041095,30]
[359197102,1745804369846,583.93493288,0.00041095,30]
[359197103,1745804370039,402.5841964,0.00041095,30]
[359197104,1745804370069,480.0,0.00041095,30]
[359197105,1745804370307,332.97559238,0.00041095,30]
[359197106,1745804373051,480.0,0.00041095,30]
[359197107,1745804373329,480.0,0.00041095,30]
[359197108,1745804373584,252.72182177,0.00041095,30]
[359197109,1745804377657,480.0,0.00041095,30]
[359197110,1745804377904,480.0,0.00041095,30]
[359197111,1745804378155,296.75713993,0.00041095,30]
[359197112,1745804378660,480.0,0.00041095,30]
[359197113,1745804378756,480.0,0.00041095,30]
[359197114,1745804378897,333.61427723,0.00041095,30]
[359197115,1745804378983,437.81870187,0.00041095,30]
[359197116,1745804380467,480.0,0.00041095,30]
[359197117,1745804380499,200.0,0.00041096,30]
[359197118,1745804380578,480.0,0.00041095,30]
[359197119,1745804380697,480.0,0.00041095,30]
[359197120,1745804380742,480.0,0.00041095,30]
[359197121,1745804380825,183.37,0.00041095,30]
[359197122,1745804380933,293.18881024,0.00041095,30]
[359197123,1745804380979,420.02413376,0.00041095,30]
[359197124,1745804382828,480.0,0.00041095,30]
[359197125,1745804382864,480.0,0.00041095,30]
[359197126,1745804383074,480.0,0.00041095,30]
[359197127,1745804383105,480.0,0.00041095,30]
[359197128,1745804383341,480.0,0.00041095,30]
[359197129,1745804383598,183.75145366,0.00041095,30]
[359197130,1745804383699,195.72384713,0.00041095,30]
[359197131,1745804385244,480.0,0.00041095,30]
[359197132,1745804385324,334.24192608,0.00041095,30]
[359197133,1745804385859,480.0,0.00041095,30]
[359197134,1745804386047,480.0,0.00041095,30]
[359197135,1745804386295,480.0,0.00041095,30]
[359197136,1745804386573,480.0,0.00041095,30]
[359197137,1745804386727,480.0,0.00041095,30]
[359197138,1745804386819,480.0,0.00041095,30]
[359197139,1745804386997,480.0,0.00041095,30]
[359197140,1745804387056,480.0,0.00041095,30]
[359197141,1745804387181,480.0,0.00041095,30]
[359197142,1745804387250,480.0,0.00041095,30]
[359197143,1745804387433,480.0,0.00041095,30]
[359197144,1745804387486,480.0,0.00041095,30]
[359197145,1745804387655,480.0,0.00041095,30]
[359197146,1745804387693,276.63046288,0.00041095,30]
[359197147,1745804387739,409.50484917,0.00041095,30]
[359197148,1745804387898,480.0,0.00041095,30]
[359197149,1745804388152,480.0,0.00041095,30]
[359197150,1745804388574,480.0,0.00041095,30]
[359197151,1745804388820,480.0,0.00041095,30]
[359197152,1745804389057,480.0,0.00041095,30]
[359197153,1745804389330,480.0,0.00041095,30]
[359197154,1745804389651,305.55036497,0.00041095,30]
[359197155,1745804390179,1445.33,0.00041086,30]
[359197156,1745804391233,400.0,0.00041095,30]
[359197157,1745804391871,480.0,0.00041095,30]
[359197158,1745804392113,480.0,0.00041095,30]
[359197159,1745804392345,266.95990239,0.00041095,30]
[359197160,1745804392987,480.0,0.00041095,30]
[359197161,1745804393262,592.96,0.00041095,30]
[359197162,1745804393994,480.0,0.00041095,30]
[359197163,1745804394312,480.0,0.00041095,30]
[359197164,1745804394551,352.91403626,0.00041095,30]
[359197165,1745804394765,617.63635735,0.00041095,30]
[359197166,1745804394859,480.0,0.00041095,30]
[359197167,1745804395102,440.44378693,0.00041095,30]
[359197168,1745804395514,400.0,0.00041095,30]
[359197169,1745804396178,480.0,0.00041095,30]
[359197170,1745804396411,480.0,0.00041095,30]
[359197171,1745804396636,255.38792193,0.00041095,30]
[359197172,1745804397631,359.16300029,0.00041095,30]
[359197173,1745804398410,480.0,0.00041095,30]
[359197174,1745804398664,480.0,0.00041095,30]
[359197175,1745804398897,480.0,0.00041095,30]
[359197176,1745804399204,292.87790255,0.00041095,30]
[359197177,1745804399236,480.0,0.00041095,30]
[359197178,1745804399465,480.0,0.00041095,30]
[359197179,1745804399707,150.67104419,0.00041095,30]
[359197180,1745804401127,480.0,0.00041095,30]
[359197181,1745804401371,480.0,0.00041095,30]
[359197182,1745804401435,579.58,0.00041095,30]
[359197183,1745804401508,480.0,0.00041095,30]
[359197184,1745804401625,248.90313479,0.00041095,30]
[359197185,1745804401781,480.0,0.00041095,30]
[359197186,1745804402046,480.0,0.00041095,30]
[359197187,1745804402334,480.0,0.00041095,30]
[359197188,1745804402575,480.0,0.00041095,30]
[359197189,1745804402780,424.47872089,0.00041095,30]
[359197190,1745804402984,442.33784639,0.00041095,30]
[359197191,1745804403025,200.0,0.00041096,30]
[359197192,1745804403059,480.0,0.00041095,30]
[359197193,1745804403181,331.56347555,0.00041095,30]
[359197194,1745804403378,400.0,0.00041095,30]
[359197195,1745804404696,480.0,0.00041095,30]
[359197196,1745804404760,480.0,0.00041095,30]
[359197197,1745804404940,348.71509752,0.00041095,30]
[359197198,1745804405016,480.0,0.00041095,30]
[359197199,1745804405261,345.0777177,0.00041095,30]
[359197200,1745804405386,480.0,0.00041095,30]
[359197201,1745804405737,480.0,0.00041095,30]
[359197202,1745804406215,497.9893796,0.00041095,30]
[359197203,1745804408610,480.0,0.00041095,30]
[359197204,1745804408660,480.0,0.00041095,30]
[359197205,1745804408866,480.0,0.00041095,30]
[359197206,1745804408907,480.0,0.00041095,30]
[359197207,1745804408955,542.41,0.00041095,30]
[359197208,1745804409107,294.67905148,0.00041095,30]
[359197209,1745804409162,259.34387218,0.00041095,30]
[359197210,1745804410290,480.0,0.00041095,30]
[359197211,1745804410536,480.0,0.00041095,30]
[359197212,1745804410770,247.76784107,0.00041095,30]
[359197213,1745804411140,480.0,0.00041095,30]
[359197214,1745804411177,480.0,0.00041095,30]
[359197215,1745804411327,480.0,0.00041095,30]
[359197216,1745804411391,471.27093186,0.00041095,30]
[359197217,1745804411433,480.0,0.00041095,30]
[359197218,1745804411775,428.65354729,0.00041095,30]
[359197219,1745804411809,169.19,0.00041095,30]
[359197220,1745804412400,480.0,0.00041095,30]
[359197221,1745804412627,480.0,0.00041095,30]
[359197222,1745804412875,261.20705952,0.00041095,30]
[359197223,1745804413846,400.0,0.00041095,30]
[359197224,1745804415634,416.58750694,0.00041095,30]
[359197225,1745804416593,480.0,0.00041095,30]
[359197226,1745804416625,480.0,0.00041095,30]
[359197227,1745804416693,480.0,0.00041095,30]
[359197228,1745804416725,384.36580899,0.00041095,30]
[359197229,1745804416948,379.58436429,0.00041095,30]
[359197230,1745804417168,480.0,0.00041095,30]
[359197231,1745804417407,332.82120318,0.00041095,30]
[359197232,1745804417680,480.0,0.00041095,30]
[359197233,1745804417751,405.54524953,0.00041095,30]
[359197234,1745804417917,326.85392659,0.00041095,30]
[359197235,1745804418533,1200.0,0.00041095,30]
[359197236,1745804419249,480.0,0.00041095,30]
[359197237,1745804419354,480.0,0.00041095,30]
[359197238,1745804419505,480.0,0.00041095,30]
[359197239,1745804419609,480.0,0.00041095,30]
[359197240,1745804419742,182.8029922,0.00041095,30]
[359197241,1745804419789,480.0,0.00041095,30]
[359197242,1745804419859,249.09350137,0.00041095,30]
[359197243,1745804420052,480.0,0.00041095,30]
[359197244,1745804420288,312.33388052,0.00041095,30]
[359197245,1745804420322,480.0,0.00041095,30]
[359197246,1745804420579,480.0,0.00041095,30]
[359197247,1745804420823,258.20543702,0.00041095,30]
[359197248,1745804421145,551.88820043,0.00041095,30]
[359197249,1745804423301,480.0,0.00041095,30]
[359197250,1745804423562,480.0,0.00041095,30]
[359197251,1745804423709,521.48746876,0.00041095,30]
[359197252,1745804423982,260.69994104,0.00041095,30]
[359197253,1745804424921,480.0,0.00041095,30]
[359197254,1745804425254,480.0,0.00041095,30]
[359197255,1745804425530,530.09587287,0.00041095,30]
[359197256,1745804425859,480.0,0.00041095,30]
[359197257,1745804426163,436.70718204,0.00041095,30]
[359197258,1745804428416,423.0406407,0.00041095,30]
[359197259,1745804428714,480.0,0.00041095,30]
[359197260,1745804428841,480.0,0.00041095,30]
[359197261,1745804428964,480.0,0.00041095,30]
[359197262,1745804429082,480.0,0.00041095,30]
[359197263,1745804429276,305.75057061,0.00041095,30]
[359197264,1745804429324,258.94771223,0.00041095,30]
[359197265,1745804430361,480.0,0.00041095,30]
[359197266,1745804430402,480.0,0.00041095,30]
[359197267,1745804430615,402.16821675,0.00041095,30]
[359197268,1745804430771,392.99433271,0.00041095,30]
[359197269,1745804431459,480.0,0.00041095,30]
[359197270,1745804431695,480.0,0.00041095,30]
[359197271,1745804431946,480.0,0.00041095,30]
[359197272,1745804432136,480.0,0.00041095,30]
[359197273,1745804432183,509.85054184,0.00041095,30]
[359197274,1745804432381,244.43305265,0.00041095,30]
[359197275,1745804432558,469.32455624,0.00041095,30]
[359197276,1745804435346,150.0,0.00041096,30]
[359197277,1745804435429,480.0,0.00041095,30]
[359197278,1745804435695,480.0,0.00041095,30]
[359197279,1745804435787,480.0,0.00041095,30]
[359197280,1745804435930,249.37336486,0.00041095,30]
[359197281,1745804436011,480.0,0.00041095,30]
[359197282,1745804436184,468.44689278,0.00041095,30]
[359197283,1745804436246,261.72309961,0.00041095,30]
[359197284,1745804438136,480.0,0.00041095,30]
[359197285,1745804438395,353.97187033,0.00041095,30]
[359197286,1745804440443,480.0,0.00041095,30]
[359197287,1745804440740,480.0,0.00041095,30]
[359197288,1745804441017,419.98274837,0.00041095,30]
[359197289,1745804441193,422.23334069,0.00041095,30]
[359197290,1745804441321,480.0,0.00041095,30]
[359197291,1745804441588,480.0,0.00041095,30]
[359197292,1745804441836,480.0,0.00041095,30]
[359197293,1745804442080,480.0,0.00041095,30]
[359197294,1745804442350,480.0,0.00041095,30]
[359197295,1745804442590,512.2152679,0.00041095,30]
[359197296,1745804444377,480.0,0.00041095,30]
[359197297,1745804444558,480.0,0.00041095,30]
[359197298,1745804444622,480.0,0.00041095,30]
[359197299,1745804444841,480.0,0.00041095,30]
[359197300,1745804444871,426.15279899,0.00041095,30]
[359197301,1745804445086,445.94477049,0.00041095,30]
[359197302,1745804447387,480.0,0.00041095,30]
[359197303,1745804447551,480.0,0.00041095,30]
[359197304,1745804447615,408.89592905,0.00041095,30]
[359197305,1745804448052,480.0,0.00041095,30]
[359197306,1745804448102,480.0,0.00041095,30]
[359197307,1745804448293,480.0,0.00041095,30]
[359197308,1745804448340,480.0,0.00041095,30]
[359197309,1745804448521,500.84125026,0.00041095,30]
[359197310,1745804448589,243.11987707,0.00041095,30]
[359197311,1745804449275,480.0,0.00041095,30]
[359197312,1745804449518,480.0,0.00041095,30]
[359197313,1745804449769,299.145016,0.00041095,30]
[359197314,1745804449954,480.0,0.00041095,30]
[359197315,1745804450188,480.0,0.00041095,30]
[359197316,1745804450469,480.0,0.00041095,30]
[359197317,1745804450725,480.0,0.00041095,30]
[359197318,1745804450772,480.0,0.00041095,30]
[359197319,1745804450972,491.03467426,0.00041095,30]
[359197320,1745804451026,611.28506005,0.00041095,30]
[359197321,1745804451860,480.0,0.00041095,30]
[359197322,1745804452095,387.42856837,0.00041095,30]
[359197323,1745804452838,480.0,0.00041095,30]
[359197324,1745804453082,480.0,0.00041095,30]
[359197325,1745804453707,480.0,0.00041095,30]
[359197326,1745804453804,480.0,0.00041095,30]
[359197327,1745804454075,480.0,0.00041095,30]
[359197328,1745804454115,522.88361435,0.00041095,30]
[359197329,1745804454623,332.70645582,0.00041095,30]
[359197330,1745804455188,480.0,0.00041095,30]
[359197331,1745804455440,480.0,0.00041095,30]
[359197332,1745804455673,260.6615131,0.00041095,30]
[359197333,1745804455757,480.0,0.00041095,30]
[359197334,1745804456006,329.37781852,0.00041095,30]
[359197335,1745804456454,480.0,0.00041095,30]
[359197336,1745804456709,480.0,0.00041095,30]
[359197337,1745804456957,324.0149845,0.00041095,30]
[359197338,1745804457839,480.0,0.00041095,30]
[359197339,1745804458086,480.0,0.00041095,30]
[359197340,1745804458340,267.69260405,0.00041095,30]
[359197341,1745804459773,480.0,0.00041095,30]
[359197342,1745804460015,480.0,0.00041095,30]
[359197343,1745804460175,285.02011543,0.00041095,30]
[359197344,1745804460258,251.16358582,0.00041095,30]
[359197345,1745804461532,192.58,0.00041095,120]
[359197346,1745804463889,480.0,0.00041095,30]
[359197347,1745804464533,480.0,0.00041095,30]
[359197348,1745804464566,480.0,0.00041095,30]
[359197349,1745804464789,480.0,0.00041095,30]
[359197350,1745804464826,480.0,0.00041095,30]
[359197351,1745804464989,480.0,0.00041095,30]
[359197352,1745804465049,480.0,0.00041095,30]
[359197353,1745804465079,480.0,0.00041095,30]
[359197354,1745804465269,480.0,0.00041095,30]
[359197355,1745804465304,163.27043287,0.00041095,30]
[359197356,1745804465334,480.0,0.00041095,30]
[359197357,1745804465511,480.0,0.00041095,30]
[359197358,1745804465767,480.0,0.00041095,30]
[359197359,1745804465854,611.26418301,0.00041095,30]
[359197360,1745804465885,480.0,0.00041095,30]
[359197361,1745804466038,618.55884717,0.00041095,30]
[359197362,1745804466096,480.0,0.00041095,30]
[359197363,1745804466355,251.00719731,0.00041095,30]
[359197364,1745804467031,480.0,0.00041095,30]
[359197365,1745804467267,339.6359768,0.00041095,30]
[359197366,1745804467775,480.0,0.00041095,30]
[359197367,1745804468013,465.0294344,0.00041095,30]
[359197368,1745804468123,480.0,0.00041095,30]
[359197369,1745804468349,480.0,0.00041095,30]
[359197370,1745804468582,577.28774038,0.00041095,30]
[359197371,1745804470412,522.95,0.00041095,30]
[359197372,1745804470809,608.43814897,0.00041095,30]
[359197373,1745804471195,480.0,0.00041095,30]
[359197374,1745804471227,480.0,0.00041095,30]
[359197375,1745804471428,480.0,0.00041095,30]
[359197376,1745804471472,480.0,0.00041095,30]
[359197377,1745804471704,379.13951986,0.00041095,30]
[359197378,1745804471735,502.57611665,0.00041095,30]
[359197379,1745804472591,480.0,0.00041095,30]
[359197380,1745804472844,480.0,0.00041095,30]
[359197381,1745804473094,480.0,0.00041095,30]
[359197382,1745804473364,153.19,0.00041095,30]
[359197383,1745804473749,301.45682485,0.00041095,30]
[359197384,1745804474749,480.0,0.00041095,30]
[359197385,1745804474993,480.0,0.00041095,30]
[359197386,1745804475257,480.0,0.00041095,30]
[359197387,1745804475289,480.0,0.00041095,30]
[359197388,1745804475522,480.0,0.00041095,30]
[359197389,1745804475556,480.0,0.00041095,30]
[359197390,1745804475599,480.0,0.00041095,30]
[359197391,1745804475805,480.0,0.00041095,30]
[359197392,1745804475842,480.0,0.00041095,30]
[359197393,1745804476060,480.0,0.00041095,30]
[359197394,1745804476101,245.0835305,0.00041095,30]
[359197395,1745804476142,480.0,0.00041095,30]
[359197396,1745804476182,480.0,0.00041095,30]
[359197397,1745804476276,480.0,0.00041095,30]
[359197398,1745804476532,480.0,0.00041095,30]
[359197399,1745804476675,554.10006087,0.00041095,30]
[359197400,1745804476769,480.0,0.00041095,30]
[359197401,1745804477361,206.21,0.00041095,30]
[359197402,1745804478092,409.11615764,0.00041095,30]
[359197403,1745804478203,480.0,0.00041095,30]
[359197404,1745804478453,165.09267537,0.00041095,30]
[359197405,1745804478535,480.0,0.00041095,30]
[359197406,1745804478772,480.0,0.00041095,30]
[359197407,1745804479025,314.98381427,0.00041095,30]
[359197408,1745804479768,480.0,0.00041095,30]
[359197409,1745804480026,480.0,0.00041095,30]
[359197410,1745804480265,252.80839385,0.00041095,30]
[359197411,1745804482256,480.0,0.00041095,30]
[359197412,1745804482344,480.0,0.00041095,30]
[359197413,1745804482492,480.0,0.00041095,30]
[359197414,1745804482524,329.87338186,0.00041095,30]
[359197415,1745804482575,326.8744999,0.00041095,30]
[359197416,1745804482766,480.0,0.00041095,30]
[359197417,1745804483369,480.0,0.00041095,30]
[359197418,1745804483530,480.0,0.00041095,30]
[359197419,1745804483631,480.0,0.00041095,30]
[359197420,1745804483737,480.0,0.00041095,30]
[359197421,1745804483775,391.71,0.00041095,30]
[359197422,1745804483854,480.0,0.00041095,30]
[359197423,1745804484080,457.76,0.00041095,30]
[359197424,1745804484187,499.89569917,0.00041095,30]
[359197425,1745804484867,480.0,0.00041095,30]
[359197426,1745804485123,480.0,0.00041095,30]
[359197427,1745804485383,480.0,0.00041095,30]
[359197428,1745804485621,405.78708178,0.00041095,30]
[359197429,1745804485651,480.0,0.00041095,30]
[359197430,1745804486196,235.29,0.00041095,30]
[359197431,1745804486483,480.0,0.00041095,30]
[359197432,1745804486689,335.8020219,0.00041095,30]
[359197433,1745804486741,480.0,0.00041095,30]
[359197434,1745804486997,480.0,0.00041095,30]
[359197435,1745804487253,412.13515196,0.00041095,30]
[359197436,1745804488118,548.25,0.00041095,30]
[359197437,1745804488151,500.0,0.00018853,2]
[359197438,1745804488637,480.0,0.00041095,30]
[359197439,1745804488864,480.0,0.00041095,30]
[359197440,1745804489105,269.1308624,0.00041095,30]
[359197441,1745804491424,480.0,0.00041095,30]
[359197442,1745804491659,480.0,0.00041095,30]
[359197443,1745804491901,252.98247951,0.00041095,30]
[359197444,1745804493012,480.0,0.00041095,30]
[359197445,1745804493176,480.0,0.00041095,30]
[359197446,1745804493267,348.73404264,0.00041095,30]
[359197447,1745804493430,480.0,0.00041095,30]
[359197448,1745804493683,159.38,0.00041095,30]
[359197449,1745804494726,400.0,0.00041095,30]
[359197450,1745804495433,480.0,0.00041095,30]
[359197451,1745804495522,480.0,0.00041095,30]
[359197452,1745804495659,480.0,0.00041095,30]
[359197453,1745804495807,480.0,0.00041095,30]
[359197454,1745804495895,480.0,0.00041095,30]
[359197455,1745804496064,480.0,0.00041095,30]
[359197456,1745804496121,480.0,0.00041095,30]
[359197457,1745804496177,480.0,0.00041095,30]
[359197458,1745804496301,278.89661867,0.00041095,30]
[359197459,1745804496345,480.0,0.00041095,30]
[359197460,1745804496386,244.87265956,0.00041095,30]
[359197461,1745804496419,179.3,0.00041095,30]
[359197462,1745804496579,480.0,0.00041095,30]
[359197463,1745804496824,246.47,0.00041095,30]
[359197464,1745804498349,480.0,0.00041095,30]
[359197465,1745804498383,480.0,0.00041095,30]
[359197466,1745804498417,427.12892052,0.00041095,30]
[359197467,1745804498511,480.0,0.00041095,30]
[359197468,1745804498620,480.0,0.00041095,30]
[359197469,1745804498750,331.00754586,0.00041095,30]
[359197470,1745804498878,480.0,0.00041095,30]
[359197471,1745804499114,313.61,0.00041095,30]
[359197472,1745804500980,480.0,0.00041095,30]
[359197473,1745804501016,480.0,0.00041095,30]
[359197474,1745804501216,480.0,0.00041095,30]
[359197475,1745804501248,311.64,0.00041095,30]
[359197476,1745804501473,480.0,0.00041095,30]
[359197477,1745804501708,361.22782628,0.00041095,30]
[359197478,1745804503173,584.82,0.00041095,30]
[359197479,1745804503758,480.0,0.00041095,30]
[359197480,1745804504004,381.1043093,0.00041095,30]
[359197481,1745804504262,480.0,0.00041095,30]
[359197482,1745804504508,480.0,0.00041095,30]
[359197483,1745804504764,480.0,0.00041095,30]
[359197484,1745804505007,480.0,0.00041095,30]
[359197485,1745804505246,480.0,0.00041095,30]
[359197486,1745804505491,581.55742348,0.00041095,30]
[359197487,1745804505977,480.0,0.00041095,30]
[359197488,1745804506246,330.09088341,0.00041095,30]
[359197489,1745804506780,493.55,0.00041095,30]
[359197490,1745804506814,480.0,0.00041095,30]
[359197491,1745804507022,480.0,0.00041095,30]
[359197492,1745804507055,493.55,0.00041095,30]
[359197493,1745804507276,363.88524799,0.00041095,30]
[359197494,1745804507321,493.55,0.00041095,30]
[359197495,1745804507639,493.55,0.00041095,30]
[359197496,1745804507895,493.55,0.00041095,30]
[359197497,1745804508162,493.55,0.00041095,30]
[359197498,1745804508195,480.0,0.00041095,30]
[359197499,1745804508572,493.55,0.00041095,30]
[359197500,1745804508606,480.0,0.00041095,30]
[359197501,1745804508647,480.0,0.00041095,30]
[359197502,1745804508682,480.0,0.00041095,30]
[359197503,1745804508717,493.55,0.00041095,30]
[359197504,1745804508821,401.07503126,0.00041095,30]
[359197505,1745804508913,480.0,0.00041095,30]
[359197506,1745804508958,493.55,0.00041095,30]
[359197507,1745804509198,480.0,0.00041095,30]
[359197508,1745804509232,493.55,0.00041095,30]
[359197509,1745804509287,480.0,0.00041095,30]
[359197510,1745804509442,508.84157481,0.00041095,30]
[359197511,1745804509481,493.55,0.00041095,30]
[359197512,1745804509523,575.81,0.00041095,30]
[359197513,1745804509735,493.55,0.00041095,30]
[359197514,1745804510051,493.55,0.00041095,30]
[359197515,1745804510295,493.55,0.00041095,30]
[359197516,1745804510369,480.0,0.00041095,30]
[359197517,1745804510581,493.55,0.00041095,30]
[359197518,1745804510616,480.0,0.00041095,30]
[359197519,1745804510809,480.0,0.00041095,30]
[359197520,1745804510879,480.0,0.00041095,30]
[359197521,1745804510914,493.55,0.00041095,30]
[359197522,1745804511091,327.58374445,0.00041095,30]
[359197523,1745804511152,480.0,0.00041095,30]
[359197524,1745804511184,493.55,0.00041095,30]
[359197525,1745804511362,595.73,0.00041095,30]
[359197526,1745804511399,206.67477426,0.00041095,30]
[359197527,1745804511433,493.55,0.00041095,30]
[359197528,1745804511857,493.55,0.00041095,30]
[359197529,1745804511901,493.55,0.00041095,30]
[359197530,1745804512141,493.55,0.00041095,30]
[359197531,1745804512187,503.12420968,0.00041095,30]
[359197532,1745804512382,493.55,0.00041095,30]
[359197533,1745804512535,480.0,0.00041095,30]
[359197534,1745804512671,493.55,0.00041095,30]
[359197535,1745804512808,326.07377117,0.00041095,30]
[359197536,1745804512916,493.748687,0.00041095,30]
[359197537,1745804513198,480.0,0.00041095,30]
[359197538,1745804513437,480.0,0.00041095,30]
[359197539,1745804513687,480.0,0.00041095,30]
[359197540,1745804513925,480.0,0.00041095,30]
[359197541,1745804514158,480.0,0.00041095,30]
[359197542,1745804514394,480.0,0.00041095,30]
[359197543,1745804514644,480.0,0.00041095,30]
[359197544,1745804514899,480.0,0.00041095,30]
[359197545,1745804515014,480.0,0.00041095,30]
[359197546,1745804515134,480.0,0.00041095,30]
[359197547,1745804515260,480.0,0.00041095,30]
[359197548,1745804515365,480.0,0.00041095,30]
[359197549,1745804515489,268.21415596,0.00041095,30]
[359197550,1745804515596,480.0,0.00041095,30]
[359197551,1745804515836,480.0,0.00041095,30]
[359197552,1745804516116,480.0,0.00041095,30]
[359197553,1745804516350,480.0,0.00041095,30]
[359197554,1745804516615,480.0,0.00041095,30]
[359197555,1745804516649,480.0,0.00041095,30]
[359197556,1745804516868,480.0,0.00041095,30]
[359197557,1745804516929,480.0,0.00041095,30]
[359197558,1745804517110,480.0,0.00041095,30]
[359197559,1745804517161,267.87383354,0.00041095,30]
[359197560,1745804517371,480.0,0.00041095,30]
[359197561,1745804517639,480.0,0.00041095,30]
[359197562,1745804517876,572.89,0.00041095,30]
[359197563,1745804519021,480.0,0.00041095,30]
[359197564,1745804519251,480.0,0.00041095,30]